[Event "Titled Tuesday Blitz August 08 Late 2023"]
[White "Chen, Max"]
[Black "maksimys18"]
[WhiteFideId "2622440"]
[WhiteElo "2601"]
[BlackElo "2457"]
[Result "0-1"]
[Round "6"]
[TimeControl "180+1"]
[Date "2023.08.08"]
[WhiteClock "0:00:01"]
[BlackClock "0:00:17"]
[Board "69"]

1. e4 {[%clk 0:03:00]}  e6 {[%clk 0:03:00]} 2. Qe2 {[%clk 0:02:58]}  c5 {[%clk 0:03:00]} 3. Nf3 {[%clk 0:02:58]}  Nc6 {[%clk 0:02:59]} 4. g3 {[%clk 0:02:59]}  Nf6 {[%clk 0:02:59]} 5. Bg2 {[%clk 0:02:59]}  Be7 {[%clk 0:02:58]} 6. O-O {[%clk 0:02:59]}  d5 {[%clk 0:02:58]} 7. e5 {[%clk 0:02:56]}  Nd7 {[%clk 0:02:58]} 8. d3 {[%clk 0:02:56]}  Qc7 {[%clk 0:02:57]} 9. Bf4 {[%clk 0:02:55]}  b5 {[%clk 0:02:57]} 10. a4 {[%clk 0:02:49]}  b4 {[%clk 0:02:57]} 11. c4 {[%clk 0:02:49]}  dxc4 {[%clk 0:02:51]} 12. dxc4 {[%clk 0:02:47]}  Bb7 {[%clk 0:02:51]} 13. Nbd2 {[%clk 0:02:45]}  Nd4 {[%clk 0:02:40]} 14. Nxd4 {[%clk 0:02:37]}  cxd4 {[%clk 0:02:40]} 15. Rad1 {[%clk 0:02:03]}  Bxg2 {[%clk 0:02:33]} 16. Kxg2 {[%clk 0:02:03]}  Nc5 {[%clk 0:02:31]} 17. Nf3 {[%clk 0:01:47]}  d3 {[%clk 0:02:24]} 18. Qe3 {[%clk 0:01:47]}  Rd8 {[%clk 0:02:20]} 19. Rd2 {[%clk 0:01:28]}  Nxa4 {[%clk 0:02:11]} 20. Ra1 {[%clk 0:01:22]}  Nc5 {[%clk 0:02:08]} 21. Nd4 {[%clk 0:01:09]}  O-O {[%clk 0:02:03]} 22. h4 {[%clk 0:01:03]}  Rxd4 {[%clk 0:02:01]} 23. Qxd4 {[%clk 0:01:03]}  Nb3 {[%clk 0:02:01]} 24. Qxa7 {[%clk 0:00:54]}  Qc6+ {[%clk 0:02:01]} 25. Kg1 {[%clk 0:00:48]}  Bc5 {[%clk 0:01:47]} 26. Qa4 {[%clk 0:00:40]}  Qxa4 {[%clk 0:01:34]} 27. Rxa4 {[%clk 0:00:41]}  Nxd2 {[%clk 0:01:31]} 28. Bxd2 {[%clk 0:00:41]}  Rb8 {[%clk 0:01:29]} 29. b3 {[%clk 0:00:40]}  h6 {[%clk 0:01:15]} 30. Kg2 {[%clk 0:00:38]}  Kh7 {[%clk 0:01:07]} 31. Kf3 {[%clk 0:00:38]}  Kg6 {[%clk 0:01:07]} 32. Ra5 {[%clk 0:00:34]}  Bd4 {[%clk 0:01:03]} 33. Ke4 {[%clk 0:00:32]}  Bxf2 {[%clk 0:01:02]} 34. g4 {[%clk 0:00:20]}  Bxh4 {[%clk 0:00:59]} 35. c5 {[%clk 0:00:20]}  f5+ {[%clk 0:00:56]} 36. exf6 {[%clk 0:00:18]}  gxf6 {[%clk 0:00:57]} 37. c6 {[%clk 0:00:16]}  Bf2 {[%clk 0:00:47]} 38. Kxd3 {[%clk 0:00:10]}  Rc8 {[%clk 0:00:42]} 39. Ra6 {[%clk 0:00:10]}  h5 {[%clk 0:00:42]} 40. gxh5+ {[%clk 0:00:08]}  Kxh5 {[%clk 0:00:42]} 41. Bxb4 {[%clk 0:00:07]}  e5 {[%clk 0:00:40]} 42. Bd6 {[%clk 0:00:06]}  Kg4 {[%clk 0:00:37]} 43. b4 {[%clk 0:00:06]}  Kf3 {[%clk 0:00:37]} 44. Kc4 {[%clk 0:00:03]}  e4 {[%clk 0:00:36]} 45. b5 {[%clk 0:00:03]}  e3 {[%clk 0:00:35]} 46. Ra3 {[%clk 0:00:03]}  Ke4 {[%clk 0:00:32]} 47. Ra2 {[%clk 0:00:02]}  f5 {[%clk 0:00:30]} 48. Kc5 {[%clk 0:00:02]}  e2+ {[%clk 0:00:29]} 49. Kc4 {[%clk 0:00:02]}  e1=Q {[%clk 0:00:29]} 50. Bb4 {[%clk 0:00:02]}  Qf1+ {[%clk 0:00:25]} 51. Kb3 {[%clk 0:00:02]}  Qxb5 {[%clk 0:00:22]} 52. Rxf2 {[%clk 0:00:03]}  Rxc6 {[%clk 0:00:20]} 53. Rb2 {[%clk 0:00:02]}  Rc4 {[%clk 0:00:20]} 54. Ka3 {[%clk 0:00:02]}  f4 {[%clk 0:00:19]} 55. Re2+ {[%clk 0:00:02]}  Kf5 {[%clk 0:00:19]} 56. Rb2 {[%clk 0:00:03]}  f3 {[%clk 0:00:19]} 57. Rb3 {[%clk 0:00:02]}  Rxb4 {[%clk 0:00:18]} 58. Rxf3+ {[%clk 0:00:01]}  Ke4 {[%clk 0:00:17]} 59. Rf5 {[%clk 0:00:01]}  Qa4# {[%clk 0:00:17]} 0-1


[Site "https://www.chess.com"]

[Event "Titled Tuesday Blitz August 08 Late 2023"]
[White "Ambartsumova, Karina"]
[Black "Nathan, Nitish"]
[WhiteFideId "4166299"]
[BlackFideId "30927870"]
[WhiteElo "2589"]
[BlackElo "2429"]
[Result "1/2-1/2"]
[Round "6"]
[TimeControl "180+1"]
[Date "2023.08.08"]
[WhiteClock "0:00:21"]
[BlackClock "0:01:09"]
[Board "70"]

1. c4 {[%clk 0:02:59]}  c6 {[%clk 0:03:00]} 2. Nf3 {[%clk 0:02:57]}  Nf6 {[%clk 0:02:59]} 3. d4 {[%clk 0:02:58]}  d5 {[%clk 0:03:00]} 4. g3 {[%clk 0:02:58]}  dxc4 {[%clk 0:02:57]} 5. Bg2 {[%clk 0:02:57]}  g6 {[%clk 0:02:58]} 6. Ne5 {[%clk 0:02:56]}  Bg7 {[%clk 0:02:54]} 7. O-O {[%clk 0:02:54]}  Ng4 {[%clk 0:02:54]} 8. Nxg4 {[%clk 0:02:38]}  Bxg4 {[%clk 0:02:55]} 9. Be3 {[%clk 0:02:30]}  O-O {[%clk 0:02:53]} 10. Na3 {[%clk 0:02:28]}  Be6 {[%clk 0:02:50]} 11. Qc2 {[%clk 0:02:26]}  Bd5 {[%clk 0:02:46]} 12. f3 {[%clk 0:02:16]}  b5 {[%clk 0:02:45]} 13. Bf2 {[%clk 0:02:16]}  b4 {[%clk 0:02:43]} 14. Nxc4 {[%clk 0:02:15]}  Nd7 {[%clk 0:02:40]} 15. e4 {[%clk 0:02:11]}  Be6 {[%clk 0:02:40]} 16. Rad1 {[%clk 0:02:08]}  Nb6 {[%clk 0:02:39]} 17. b3 {[%clk 0:01:56]}  Nxc4 {[%clk 0:02:30]} 18. bxc4 {[%clk 0:01:57]}  a5 {[%clk 0:02:27]} 19. d5 {[%clk 0:01:55]}  Bc8 {[%clk 0:02:27]} 20. f4 {[%clk 0:01:42]}  cxd5 {[%clk 0:02:22]} 21. Rxd5 {[%clk 0:01:15]}  Qe8 {[%clk 0:02:20]} 22. e5 {[%clk 0:01:05]}  Bb7 {[%clk 0:02:20]} 23. Rc5 {[%clk 0:01:05]}  Bxg2 {[%clk 0:02:19]} 24. Kxg2 {[%clk 0:01:06]}  Qd7 {[%clk 0:02:17]} 25. Rd1 {[%clk 0:00:57]}  Qb7+ {[%clk 0:02:16]} 26. Kg1 {[%clk 0:00:57]}  Rfc8 {[%clk 0:02:15]} 27. Rxc8+ {[%clk 0:00:55]}  Rxc8 {[%clk 0:02:15]} 28. c5 {[%clk 0:00:55]}  e6 {[%clk 0:02:10]} 29. Rc1 {[%clk 0:00:45]}  Qc6 {[%clk 0:02:07]} 30. Qd3 {[%clk 0:00:39]}  Bf8 {[%clk 0:02:07]} 31. h3 {[%clk 0:00:31]}  Rc7 {[%clk 0:01:56]} 32. Kh2 {[%clk 0:00:30]}  Rd7 {[%clk 0:01:56]} 33. Qc2 {[%clk 0:00:28]}  Rd5 {[%clk 0:01:52]} 34. g4 {[%clk 0:00:23]}  Bh6 {[%clk 0:01:09]} 35. Be3 {[%clk 0:00:21]} 1/2-1/2


[Site "https://www.chess.com"]

[Event "Titled Tuesday Blitz August 08 Late 2023"]
[White "Sun, Rick"]
[Black "Bueno, Alfeu Junior Varela"]
[WhiteFideId "30909481"]
[BlackFideId "2108879"]
[WhiteElo "2588"]
[BlackElo "2424"]
[Result "1-0"]
[Round "6"]
[TimeControl "180+1"]
[Date "2023.08.08"]
[WhiteClock "0:00:10"]
[BlackClock "0:00:03"]
[Board "71"]

1. e4 {[%clk 0:03:00]}  e6 {[%clk 0:02:58]} 2. d4 {[%clk 0:03:00]}  d5 {[%clk 0:02:58]} 3. exd5 {[%clk 0:03:01]}  exd5 {[%clk 0:02:58]} 4. Nf3 {[%clk 0:03:02]}  Nc6 {[%clk 0:02:59]} 5. Bd3 {[%clk 0:03:02]}  Bg4 {[%clk 0:02:59]} 6. O-O {[%clk 0:03:03]}  Bd6 {[%clk 0:03:00]} 7. c4 {[%clk 0:03:03]}  Nge7 {[%clk 0:02:51]} 8. c5 {[%clk 0:03:02]}  Nxd4 {[%clk 0:02:50]} 9. cxd6 {[%clk 0:02:53]}  Qxd6 {[%clk 0:02:49]} 10. Qa4+ {[%clk 0:02:48]}  b5 {[%clk 0:02:36]} 11. Qxd4 {[%clk 0:02:41]}  Bxf3 {[%clk 0:02:36]} 12. gxf3 {[%clk 0:02:42]}  O-O {[%clk 0:02:35]} 13. Bf4 {[%clk 0:02:26]}  Qd7 {[%clk 0:02:34]} 14. Nc3 {[%clk 0:02:13]}  c6 {[%clk 0:02:34]} 15. Rae1 {[%clk 0:02:10]}  Rfe8 {[%clk 0:02:34]} 16. Re2 {[%clk 0:02:01]}  Nf5 {[%clk 0:02:28]} 17. Bxf5 {[%clk 0:01:51]}  Qxf5 {[%clk 0:02:29]} 18. Rfe1 {[%clk 0:01:47]}  Rec8 {[%clk 0:02:07]} 19. Qe5 {[%clk 0:01:23]}  Qg6+ {[%clk 0:02:00]} 20. Bg3 {[%clk 0:01:20]}  h6 {[%clk 0:01:59]} 21. Qd6 {[%clk 0:01:04]}  Qd3 {[%clk 0:01:53]} 22. Qf4 {[%clk 0:00:53]}  a5 {[%clk 0:01:50]} 23. Re7 {[%clk 0:00:52]}  Rf8 {[%clk 0:01:41]} 24. Nd1 {[%clk 0:00:45]}  Qb1 {[%clk 0:01:27]} 25. Qd2 {[%clk 0:00:32]}  Qxa2 {[%clk 0:01:24]} 26. Ne3 {[%clk 0:00:27]}  Qa4 {[%clk 0:00:56]} 27. Nf5 {[%clk 0:00:25]}  Qb3 {[%clk 0:00:33]} 28. Nxh6+ {[%clk 0:00:16]}  gxh6 {[%clk 0:00:17]} 29. Qxh6 {[%clk 0:00:17]}  Qxf3 {[%clk 0:00:17]} 30. R1e5 {[%clk 0:00:14]}  Qg4 {[%clk 0:00:02]} 31. Rg5+ {[%clk 0:00:13]}  Qxg5 {[%clk 0:00:03]} 32. Qxg5+ {[%clk 0:00:14]}  Kh7 {[%clk 0:00:03]} 33. Qh5+ {[%clk 0:00:11]}  Kg8 {[%clk 0:00:02]} 34. Be5 {[%clk 0:00:11]}  f6 {[%clk 0:00:03]} 35. Qh7# {[%clk 0:00:10]} 1-0


[Site "https://www.chess.com"]

[Event "Titled Tuesday Blitz August 08 Late 2023"]
[White "Musovic, Armin"]
[Black "Romero Ruscalleda, Josep"]
[WhiteFideId "939935"]
[BlackFideId "2231859"]
[WhiteElo "2584"]
[BlackElo "2418"]
[Result "1-0"]
[Round "6"]
[TimeControl "180+1"]
[Date "2023.08.08"]
[WhiteClock "0:00:31"]
[BlackClock "0:00:00"]
[Board "72"]

1. a3 {[%clk 0:02:59]}  g6 {[%clk 0:02:59]} 2. Nc3 {[%clk 0:02:59]}  Bg7 {[%clk 0:02:59]} 3. e4 {[%clk 0:03:00]}  d6 {[%clk 0:02:59]} 4. Bc4 {[%clk 0:03:01]}  c5 {[%clk 0:02:58]} 5. d3 {[%clk 0:03:01]}  Nc6 {[%clk 0:02:58]} 6. Nge2 {[%clk 0:03:01]}  Nf6 {[%clk 0:02:58]} 7. O-O {[%clk 0:03:01]}  O-O {[%clk 0:02:57]} 8. h3 {[%clk 0:03:02]}  e6 {[%clk 0:02:55]} 9. Bg5 {[%clk 0:03:01]}  h6 {[%clk 0:02:54]} 10. Bh4 {[%clk 0:03:02]}  g5 {[%clk 0:02:37]} 11. Bg3 {[%clk 0:03:02]}  d5 {[%clk 0:02:37]} 12. exd5 {[%clk 0:02:57]}  exd5 {[%clk 0:02:37]} 13. Ba2 {[%clk 0:02:57]}  Be6 {[%clk 0:02:35]} 14. f4 {[%clk 0:02:50]}  Qd7 {[%clk 0:02:13]} 15. fxg5 {[%clk 0:02:46]}  hxg5 {[%clk 0:02:13]} 16. Qd2 {[%clk 0:02:40]}  g4 {[%clk 0:02:02]} 17. Bh4 {[%clk 0:02:21]}  Nh7 {[%clk 0:01:47]} 18. Nf4 {[%clk 0:02:15]}  gxh3 {[%clk 0:01:46]} 19. Nh5 {[%clk 0:02:05]}  Bd4+ {[%clk 0:00:57]} 20. Kh1 {[%clk 0:01:58]}  Kh8 {[%clk 0:00:53]} 21. g3 {[%clk 0:01:21]}  Bg4 {[%clk 0:00:47]} 22. Qh6 {[%clk 0:01:14]}  Bxh5 {[%clk 0:00:28]} 23. Qxh5 {[%clk 0:01:15]}  c4 {[%clk 0:00:15]} 24. Nxd5 {[%clk 0:01:02]}  Rad8 {[%clk 0:00:13]} 25. dxc4 {[%clk 0:01:02]}  Qe6 {[%clk 0:00:10]} 26. Rae1 {[%clk 0:00:59]}  Qg6 {[%clk 0:00:09]} 27. Qxg6 {[%clk 0:00:58]}  fxg6 {[%clk 0:00:09]} 28. Bxd8 {[%clk 0:00:57]}  Rxd8 {[%clk 0:00:10]} 29. c3 {[%clk 0:00:55]}  Bg7 {[%clk 0:00:10]} 30. Ne7 {[%clk 0:00:49]}  Nf8 {[%clk 0:00:08]} 31. Nxc6 {[%clk 0:00:46]}  bxc6 {[%clk 0:00:08]} 32. Kh2 {[%clk 0:00:37]}  Rd2+ {[%clk 0:00:08]} 33. Kxh3 {[%clk 0:00:37]}  Rxb2 {[%clk 0:00:08]} 34. Bb1 {[%clk 0:00:37]}  Kh7 {[%clk 0:00:06]} 35. Re7 {[%clk 0:00:32]}  Rd2 {[%clk 0:00:00]} 36. Rxf8 {[%clk 0:00:31]} 1-0


[Site "https://www.chess.com"]

[Event "Titled Tuesday Blitz August 08 Late 2023"]
[White "Attacker_2006"]
[Black "Dwilewicz, Katarzyna"]
[BlackFideId "1148486"]
[WhiteElo "2571"]
[BlackElo "2392"]
[Result "1-0"]
[Round "6"]
[TimeControl "180+1"]
[Date "2023.08.08"]
[WhiteClock "0:00:52"]
[BlackClock "0:00:03"]
[Board "74"]

1. e4 {[%clk 0:02:54]}  c5 {[%clk 0:03:00]} 2. Nc3 {[%clk 0:02:51]}  d6 {[%clk 0:02:59]} 3. d4 {[%clk 0:02:51]}  cxd4 {[%clk 0:02:59]} 4. Qxd4 {[%clk 0:02:51]}  Nc6 {[%clk 0:02:55]} 5. Qd2 {[%clk 0:02:52]}  g6 {[%clk 0:02:54]} 6. b3 {[%clk 0:02:52]}  Bh6 {[%clk 0:02:54]} 7. f4 {[%clk 0:02:52]}  e5 {[%clk 0:02:54]} 8. Nb5 {[%clk 0:02:51]}  Bxf4 {[%clk 0:02:47]} 9. Qxd6 {[%clk 0:02:45]}  Qxd6 {[%clk 0:02:20]} 10. Nxd6+ {[%clk 0:02:46]}  Ke7 {[%clk 0:02:20]} 11. Ba3 {[%clk 0:02:44]}  Ke6 {[%clk 0:02:20]} 12. Bc4+ {[%clk 0:02:43]}  Kf6 {[%clk 0:02:15]} 13. Nxf7 {[%clk 0:02:03]}  Nd4 {[%clk 0:02:13]} 14. Nxh8 {[%clk 0:01:44]}  Nxc2+ {[%clk 0:01:58]} 15. Kf2 {[%clk 0:01:43]}  Nxa1 {[%clk 0:01:50]} 16. Bxg8 {[%clk 0:01:35]}  Be6 {[%clk 0:01:42]} 17. Bxe6 {[%clk 0:01:34]}  Kxe6 {[%clk 0:01:42]} 18. Ne2 {[%clk 0:01:33]}  Nc2 {[%clk 0:01:41]} 19. Nxf4+ {[%clk 0:01:27]}  exf4 {[%clk 0:01:38]} 20. Bb2 {[%clk 0:01:28]}  Nb4 {[%clk 0:01:29]} 21. Rd1 {[%clk 0:01:26]}  Rc8 {[%clk 0:01:26]} 22. Kf3 {[%clk 0:01:20]}  g5 {[%clk 0:01:23]} 23. Bg7 {[%clk 0:01:16]}  Nxa2 {[%clk 0:01:19]} 24. e5 {[%clk 0:01:13]}  Rc6 {[%clk 0:00:57]} 25. Kg4 {[%clk 0:01:12]}  Nc3 {[%clk 0:00:54]} 26. Rd8 {[%clk 0:01:10]}  Ne4 {[%clk 0:00:53]} 27. Re8+ {[%clk 0:01:07]}  Kd7 {[%clk 0:00:53]} 28. Rf8 {[%clk 0:01:05]}  Rb6 {[%clk 0:00:45]} 29. Kf5 {[%clk 0:01:04]}  Nc5 {[%clk 0:00:35]} 30. Bf6 {[%clk 0:00:56]}  a5 {[%clk 0:00:24]} 31. Rf7+ {[%clk 0:00:55]}  Ke8 {[%clk 0:00:20]} 32. Re7+ {[%clk 0:00:53]}  Kf8 {[%clk 0:00:19]} 33. Rxh7 {[%clk 0:00:53]}  Rxb3 {[%clk 0:00:16]} 34. Ng6+ {[%clk 0:00:52]}  Ke8 {[%clk 0:00:14]} 35. Re7+ {[%clk 0:00:53]}  Kd8 {[%clk 0:00:14]} 36. Rxb7+ {[%clk 0:00:53]}  Kc8 {[%clk 0:00:14]} 37. Rxb3 {[%clk 0:00:53]}  Nxb3 {[%clk 0:00:15]} 38. e6 {[%clk 0:00:54]}  a4 {[%clk 0:00:14]} 39. Nf8 {[%clk 0:00:52]}  Nc5 {[%clk 0:00:03]} 40. e7 {[%clk 0:00:52]} 1-0


[Site "https://www.chess.com"]

[Event "Titled Tuesday Blitz August 08 Late 2023"]
[White "Garrido Outon, Alex"]
[Black "Kula, Robert"]
[WhiteFideId "24516279"]
[BlackFideId "1101218"]
[WhiteElo "2528"]
[BlackElo "2258"]
[Result "1-0"]
[Round "6"]
[TimeControl "180+1"]
[Date "2023.08.08"]
[WhiteClock "0:01:53"]
[BlackClock "0:00:34"]
[Board "75"]

1. b3 {[%clk 0:03:00]}  d5 {[%clk 0:02:59]} 2. Bb2 {[%clk 0:02:59]}  c5 {[%clk 0:02:59]} 3. e3 {[%clk 0:02:59]}  Nc6 {[%clk 0:02:58]} 4. Bb5 {[%clk 0:02:59]}  Bd7 {[%clk 0:02:57]} 5. f4 {[%clk 0:02:56]}  Nf6 {[%clk 0:02:56]} 6. Nf3 {[%clk 0:02:57]}  e6 {[%clk 0:02:56]} 7. d3 {[%clk 0:02:56]}  Be7 {[%clk 0:02:56]} 8. Nbd2 {[%clk 0:02:54]}  O-O {[%clk 0:02:56]} 9. O-O {[%clk 0:02:54]}  a6 {[%clk 0:02:50]} 10. Bxc6 {[%clk 0:02:54]}  Bxc6 {[%clk 0:02:51]} 11. Ne5 {[%clk 0:02:53]}  Rc8 {[%clk 0:02:51]} 12. Rf3 {[%clk 0:02:46]}  Nd7 {[%clk 0:02:48]} 13. Nxd7 {[%clk 0:02:37]}  Qxd7 {[%clk 0:02:46]} 14. Rh3 {[%clk 0:02:31]}  f5 {[%clk 0:02:24]} 15. Qh5 {[%clk 0:02:23]}  h6 {[%clk 0:01:58]} 16. Bxg7 {[%clk 0:02:22]}  Rf7 {[%clk 0:00:45]} 17. Be5 {[%clk 0:01:53]}  Bf6 {[%clk 0:00:40]} 18. Qg6+ {[%clk 0:01:52]}  Bg7 {[%clk 0:00:40]} 19. Rxh6 {[%clk 0:01:53]}  Kf8 {[%clk 0:00:35]} 20. Bxg7+ {[%clk 0:01:52]}  Rxg7 {[%clk 0:00:35]} 21. Rh8+ {[%clk 0:01:52]}  Ke7 {[%clk 0:00:35]} 22. Qxg7+ {[%clk 0:01:53]}  Kd6 {[%clk 0:00:36]} 23. Qe5+ {[%clk 0:01:53]}  Ke7 {[%clk 0:00:35]} 24. Rh7+ {[%clk 0:01:53]}  Ke8 {[%clk 0:00:34]} 25. Qh8# {[%clk 0:01:53]} 1-0


[Site "https://www.chess.com"]

[Event "Titled Tuesday Blitz August 08 Late 2023"]
[White "Andrews, Todd"]
[Black "Troff, Kayden"]
[WhiteFideId "2012456"]
[BlackFideId "2047896"]
[WhiteElo "2381"]
[BlackElo "2782"]
[Result "0-1"]
[Round "6"]
[TimeControl "180+1"]
[Date "2023.08.08"]
[WhiteClock "0:00:12"]
[BlackClock "0:00:22"]
[Board "76"]

1. e4 {[%clk 0:03:00]}  c5 {[%clk 0:02:57]} 2. Nf3 {[%clk 0:03:00]}  g6 {[%clk 0:02:57]} 3. d3 {[%clk 0:02:59]}  Bg7 {[%clk 0:02:56]} 4. g3 {[%clk 0:03:00]}  Nc6 {[%clk 0:02:55]} 5. Bg2 {[%clk 0:03:00]}  d6 {[%clk 0:02:50]} 6. O-O {[%clk 0:03:00]}  e5 {[%clk 0:02:49]} 7. Nc3 {[%clk 0:02:58]}  Nge7 {[%clk 0:02:49]} 8. Nd2 {[%clk 0:02:59]}  O-O {[%clk 0:02:47]} 9. Nc4 {[%clk 0:02:58]}  Rb8 {[%clk 0:02:42]} 10. a4 {[%clk 0:02:58]}  b6 {[%clk 0:02:41]} 11. Nd5 {[%clk 0:02:56]}  a6 {[%clk 0:02:28]} 12. c3 {[%clk 0:02:28]}  b5 {[%clk 0:02:27]} 13. axb5 {[%clk 0:02:29]}  axb5 {[%clk 0:02:27]} 14. Nce3 {[%clk 0:02:29]}  Be6 {[%clk 0:02:17]} 15. f4 {[%clk 0:02:24]}  f5 {[%clk 0:02:09]} 16. Bd2 {[%clk 0:02:15]}  Qd7 {[%clk 0:01:32]} 17. Ra6 {[%clk 0:01:54]}  Bxd5 {[%clk 0:01:20]} 18. Nxd5 {[%clk 0:01:45]}  Nxd5 {[%clk 0:01:11]} 19. exd5 {[%clk 0:01:46]}  Nd8 {[%clk 0:01:10]} 20. fxe5 {[%clk 0:01:43]}  Bxe5 {[%clk 0:01:09]} 21. Bh6 {[%clk 0:01:36]}  Re8 {[%clk 0:01:07]} 22. Qf3 {[%clk 0:01:24]}  Nf7 {[%clk 0:01:06]} 23. Bd2 {[%clk 0:01:14]}  b4 {[%clk 0:01:00]} 24. Rfa1 {[%clk 0:01:04]}  bxc3 {[%clk 0:00:57]} 25. bxc3 {[%clk 0:01:01]}  Rb2 {[%clk 0:00:37]} 26. Be1 {[%clk 0:00:47]}  Reb8 {[%clk 0:00:35]} 27. Ra7 {[%clk 0:00:42]}  R8b7 {[%clk 0:00:33]} 28. Ra8+ {[%clk 0:00:40]}  Kg7 {[%clk 0:00:29]} 29. h4 {[%clk 0:00:36]}  h5 {[%clk 0:00:26]} 30. Qe3 {[%clk 0:00:34]}  Rc2 {[%clk 0:00:20]} 31. d4 {[%clk 0:00:31]}  cxd4 {[%clk 0:00:19]} 32. cxd4 {[%clk 0:00:31]}  Bf6 {[%clk 0:00:19]} 33. Rc1 {[%clk 0:00:23]}  Rxc1 {[%clk 0:00:16]} 34. Qxc1 {[%clk 0:00:23]}  Bxd4+ {[%clk 0:00:16]} 35. Kh2 {[%clk 0:00:23]}  Be5 {[%clk 0:00:16]} 36. Bc3 {[%clk 0:00:23]}  Rc7 {[%clk 0:00:13]} 37. Bxe5+ {[%clk 0:00:22]}  Nxe5 {[%clk 0:00:14]} 38. Qg5 {[%clk 0:00:22]}  Qe7 {[%clk 0:00:13]} 39. Qxe7+ {[%clk 0:00:17]}  Rxe7 {[%clk 0:00:14]} 40. Rd8 {[%clk 0:00:17]}  Nf7 {[%clk 0:00:13]} 41. Rc8 {[%clk 0:00:17]}  Kf6 {[%clk 0:00:14]} 42. Kg1 {[%clk 0:00:17]}  Re3 {[%clk 0:00:13]} 43. Kf2 {[%clk 0:00:17]}  Ra3 {[%clk 0:00:14]} 44. Rg8 {[%clk 0:00:17]}  Ra2+ {[%clk 0:00:15]} 45. Kf1 {[%clk 0:00:18]}  Ne5 {[%clk 0:00:14]} 46. Rd8 {[%clk 0:00:17]}  Nc4 {[%clk 0:00:13]} 47. Bf3 {[%clk 0:00:17]}  Ra3 {[%clk 0:00:12]} 48. Be2 {[%clk 0:00:17]}  Ne3+ {[%clk 0:00:13]} 49. Kf2 {[%clk 0:00:17]}  Ke5 {[%clk 0:00:12]} 50. Rg8 {[%clk 0:00:15]}  Ra2 {[%clk 0:00:11]} 51. Kf3 {[%clk 0:00:15]}  Nc2 {[%clk 0:00:10]} 52. Rxg6 {[%clk 0:00:15]}  Nd4+ {[%clk 0:00:10]} 53. Ke3 {[%clk 0:00:15]}  Rxe2+ {[%clk 0:00:11]} 54. Kd3 {[%clk 0:00:16]}  Kxd5 {[%clk 0:00:10]} 55. Rg5 {[%clk 0:00:16]}  Rb2 {[%clk 0:00:11]} 56. Rxh5 {[%clk 0:00:16]}  Rb3+ {[%clk 0:00:12]} 57. Kd2 {[%clk 0:00:16]}  Rxg3 {[%clk 0:00:13]} 58. Rh6 {[%clk 0:00:15]}  Rh3 {[%clk 0:00:13]} 59. h5 {[%clk 0:00:16]}  f4 {[%clk 0:00:13]} 60. Ke1 {[%clk 0:00:16]}  Ke4 {[%clk 0:00:13]} 61. Kf2 {[%clk 0:00:17]}  Rh2+ {[%clk 0:00:13]} 62. Kg1 {[%clk 0:00:17]}  Nf3+ {[%clk 0:00:14]} 63. Kf1 {[%clk 0:00:16]}  Nd2+ {[%clk 0:00:14]} 64. Kg1 {[%clk 0:00:16]}  Nf3+ {[%clk 0:00:15]} 65. Kf1 {[%clk 0:00:16]}  d5 {[%clk 0:00:15]} 66. Re6+ {[%clk 0:00:16]}  Ne5 {[%clk 0:00:15]} 67. h6 {[%clk 0:00:16]}  f3 {[%clk 0:00:15]} 68. Kg1 {[%clk 0:00:16]}  Rh5 {[%clk 0:00:15]} 69. Kf2 {[%clk 0:00:15]}  d4 {[%clk 0:00:16]} 70. Kg3 {[%clk 0:00:13]}  d3 {[%clk 0:00:16]} 71. Rd6 {[%clk 0:00:13]}  Ke3 {[%clk 0:00:16]} 72. Rd5 {[%clk 0:00:12]}  d2 {[%clk 0:00:17]} 73. h7 {[%clk 0:00:10]}  Ke4 {[%clk 0:00:18]} 74. Rxd2 {[%clk 0:00:09]}  Rxh7 {[%clk 0:00:18]} 75. Rg2 {[%clk 0:00:09]}  fxg2 {[%clk 0:00:18]} 76. Kxg2 {[%clk 0:00:09]}  Rf7 {[%clk 0:00:18]} 77. Kg3 {[%clk 0:00:09]}  Rf3+ {[%clk 0:00:19]} 78. Kg2 {[%clk 0:00:09]}  Kf4 {[%clk 0:00:20]} 79. Kh2 {[%clk 0:00:10]}  Kg4 {[%clk 0:00:20]} 80. Kg2 {[%clk 0:00:11]}  Nd3 {[%clk 0:00:20]} 81. Kh2 {[%clk 0:00:11]}  Rf2+ {[%clk 0:00:21]} 82. Kg1 {[%clk 0:00:12]}  Kg3 {[%clk 0:00:22]} 83. Kh1 {[%clk 0:00:12]}  Rf1# {[%clk 0:00:22]} 0-1


[Site "https://www.chess.com"]

[Event "Titled Tuesday Blitz August 08 Late 2023"]
[White "Sreyas Payyappat"]
[Black "Adewumi, Tanitoluwa"]
[WhiteFideId "46674969"]
[BlackFideId "30966396"]
[WhiteElo "2508"]
[BlackElo "2763"]
[Result "1-0"]
[Round "6"]
[TimeControl "180+1"]
[Date "2023.08.08"]
[WhiteClock "0:00:55"]
[BlackClock "0:00:00"]
[Board "77"]

1. e4 {[%clk 0:03:00]}  c5 {[%clk 0:02:51]} 2. Nf3 {[%clk 0:03:00]}  e6 {[%clk 0:02:51]} 3. d4 {[%clk 0:03:01]}  cxd4 {[%clk 0:02:52]} 4. Nxd4 {[%clk 0:03:01]}  Nc6 {[%clk 0:02:49]} 5. Nc3 {[%clk 0:03:01]}  Qc7 {[%clk 0:02:49]} 6. Be3 {[%clk 0:02:59]}  a6 {[%clk 0:02:48]} 7. Be2 {[%clk 0:02:58]}  Nf6 {[%clk 0:02:47]} 8. O-O {[%clk 0:02:59]}  Be7 {[%clk 0:02:46]} 9. f4 {[%clk 0:02:58]}  d6 {[%clk 0:02:46]} 10. Bf3 {[%clk 0:02:57]}  Nxd4 {[%clk 0:02:44]} 11. Qxd4 {[%clk 0:02:47]}  e5 {[%clk 0:02:43]} 12. Qd2 {[%clk 0:02:47]}  exf4 {[%clk 0:02:34]} 13. Bxf4 {[%clk 0:02:48]}  Be6 {[%clk 0:02:33]} 14. Kh1 {[%clk 0:02:46]}  O-O {[%clk 0:02:33]} 15. Rad1 {[%clk 0:02:41]}  Rfd8 {[%clk 0:02:28]} 16. Qf2 {[%clk 0:02:37]}  Rac8 {[%clk 0:02:22]} 17. Rd2 {[%clk 0:02:33]}  b5 {[%clk 0:02:09]} 18. Rfd1 {[%clk 0:02:29]}  b4 {[%clk 0:02:08]} 19. Ne2 {[%clk 0:02:26]}  Qc4 {[%clk 0:01:42]} 20. Nd4 {[%clk 0:02:18]}  d5 {[%clk 0:01:36]} 21. b3 {[%clk 0:02:14]}  Qc5 {[%clk 0:01:30]} 22. e5 {[%clk 0:01:54]}  Ne4 {[%clk 0:00:45]} 23. Bxe4 {[%clk 0:01:49]}  dxe4 {[%clk 0:00:46]} 24. Qe3 {[%clk 0:01:20]}  Qc3 {[%clk 0:00:25]} 25. Qxe4 {[%clk 0:01:08]}  Bd5 {[%clk 0:00:24]} 26. Qe2 {[%clk 0:01:02]}  h6 {[%clk 0:00:18]} 27. Nf5 {[%clk 0:00:59]}  Bc5 {[%clk 0:00:00]} 28. Rxd5 {[%clk 0:00:55]} 1-0


[Site "https://www.chess.com"]